[Event "Late-Titled-Tuesday-Blitz-February-20-2024"]
[Site "Chess.com"]
[Date "2024.02.20"]
[Round "2"]
[White "laziestwin"]
[Black "TigrVShlyape"]
[Result "0-1"]
[WhiteElo "2558"]
[BlackElo "2922"]
[TimeControl "180+1"]
[EndTime "14:16:31 PST"]
[Termination "TigrVShlyape won by resignation"]

1. d4 {[%clk 0:03:00.9]} 1... f5 {[%clk 0:02:59.6]} 2. Nc3 {[%clk 0:03:00.6]}
2... Nf6 {[%clk 0:02:59.4]} 3. Bg5 {[%clk 0:02:58.8]} 3... d5 {[%clk 0:02:59.2]}
4. Bxf6 {[%clk 0:02:56.3]} 4... exf6 {[%clk 0:02:59.2]} 5. e3 {[%clk 0:02:56.9]}
5... Be6 {[%clk 0:02:59.5]} 6. Bd3 {[%clk 0:02:52.7]} 6... Nc6 {[%clk
0:02:59.1]} 7. Qf3 {[%clk 0:02:51]} 7... Qd7 {[%clk 0:02:58.9]} 8. a3 {[%clk
0:02:50.9]} 8... O-O-O {[%clk 0:02:51]} 9. Nge2 {[%clk 0:02:50.7]} 9... g5
{[%clk 0:02:38.2]} 10. Ng3 {[%clk 0:02:21.5]} 10... f4 {[%clk 0:02:36]} 11. exf4
{[%clk 0:01:40.8]} 11... Nxd4 {[%clk 0:02:29.1]} 12. Qd1 {[%clk 0:00:31.2]}
12... gxf4 {[%clk 0:02:28.1]} 13. Nge2 {[%clk 0:00:30.6]} 13... Nxe2 {[%clk
0:02:26.6]} 14. Nxe2 {[%clk 0:00:26.6]} 14... f3 {[%clk 0:02:26.1]} 15. gxf3
{[%clk 0:00:26.7]} 15... Bh6 {[%clk 0:02:21.8]} 16. f4 {[%clk 0:00:26]} 16... c5
{[%clk 0:02:14.6]} 17. c3 {[%clk 0:00:18.2]} 17... d4 {[%clk 0:02:09.6]} 18.
cxd4 {[%clk 0:00:18]} 18... cxd4 {[%clk 0:02:02.2]} 19. Qc2+ {[%clk 0:00:06.8]}
19... Kb8 {[%clk 0:02:01.5]} 20. Rc1 {[%clk 0:00:05.6]} 20... Rhg8 {[%clk
0:01:56.4]} 21. Qc5 {[%clk 0:00:01.7]} 21... Rc8 {[%clk 0:01:53.6]} 22. Qh5
{[%clk 0:00:01.5]} 22... Rxc1+ {[%clk 0:01:52.8]} 23. Nxc1 {[%clk 0:00:02.3]}
23... Bxf4 {[%clk 0:01:52.2]} 24. Ne2 {[%clk 0:00:03.1]} 24... Be5 {[%clk
0:01:46.9]} 25. Qxh7 {[%clk 0:00:03.7]} 25... Qd8 {[%clk 0:01:22.7]} 26. Rg1
{[%clk 0:00:03.2]} 26... Rh8 {[%clk 0:01:19.6]} 27. Qg7 {[%clk 0:00:03.3]} 27...
Bxh2 {[%clk 0:01:18.6]} 28. Rh1 {[%clk 0:00:03.2]} 28... Rg8 {[%clk 0:01:17.7]}
29. Qh7 {[%clk 0:00:01.8]} 29... Be5 {[%clk 0:01:16.8]} 30. f4 {[%clk
0:00:01.9]} 30... Bd6 {[%clk 0:01:15]} 31. Nxd4 {[%clk 0:00:01.9]} 31... Bb4+
{[%clk 0:01:13.3]} 32. axb4 {[%clk 0:00:01.4]} 32... Qxd4 {[%clk 0:01:13.8]} 33.
Qe4 {[%clk 0:00:02]} 33... Qb6 {[%clk 0:01:08.7]} 34. f5 {[%clk 0:00:01.5]}
34... Bd7 {[%clk 0:01:07.3]} 35. Rh7 {[%clk 0:00:02.1]} 35... Re8 {[%clk
0:01:05.3]} 36. Re7 {[%clk 0:00:01.2]} 36... Rd8 {[%clk 0:00:57.1]} 37. Qf4+
{[%clk 0:00:01.1]} 37... Ka8 {[%clk 0:00:57.3]} 38. Qe4 {[%clk 0:00:01.7]} 38...
a6 {[%clk 0:00:56.7]} 39. Kd2 {[%clk 0:00:01.6]} 39... Bc6 {[%clk 0:00:56.2]}
40. Re5 {[%clk 0:00:01.8]} 40... Bxe4 {[%clk 0:00:54.9]} 0-1

[Event "Late-Titled-Tuesday-Blitz-February-20-2024"]
[Site "Chess.com"]
[Date "2024.02.20"]
[Round "2"]
[White "laskakid"]
[Black "rdarruda"]
[Result "0-1"]
[WhiteElo "2343"]
[BlackElo "2525"]
[TimeControl "180+1"]
[EndTime "14:16:32 PST"]
[Termination "rdarruda won by resignation"]

1. d4 {[%clk 0:03:00.9]} 1... Nf6 {[%clk 0:02:58.8]} 2. c4 {[%clk 0:03:00.4]}
2... e5 {[%clk 0:02:58.4]} 3. dxe5 {[%clk 0:02:59.8]} 3... Ne4 {[%clk
0:02:58.6]} 4. a3 {[%clk 0:02:58.6]} 4... Nc6 {[%clk 0:02:58.1]} 5. Nf3 {[%clk
0:02:57]} 5... d6 {[%clk 0:02:58.2]} 6. Qc2 {[%clk 0:02:57.2]} 6... d5 {[%clk
0:02:56.8]} 7. e3 {[%clk 0:02:40.2]} 7... Be6 {[%clk 0:02:55.2]} 8. Nbd2 {[%clk
0:02:33.2]} 8... Nxd2 {[%clk 0:02:47.1]} 9. Bxd2 {[%clk 0:02:33.5]} 9... Qd7
{[%clk 0:02:46.7]} 10. cxd5 {[%clk 0:02:22.8]} 10... Qxd5 {[%clk 0:02:45.4]} 11.
Bc3 {[%clk 0:02:20]} 11... O-O-O {[%clk 0:02:43.7]} 12. Rd1 {[%clk 0:02:06.9]}
12... Qxd1+ {[%clk 0:02:38.4]} 13. Qxd1 {[%clk 0:02:06.7]} 13... Rxd1+ {[%clk
0:02:38.2]} 14. Kxd1 {[%clk 0:02:07.1]} 14... Bb3+ {[%clk 0:02:37.9]} 15. Ke1
{[%clk 0:01:58.4]} 15... Be7 {[%clk 0:02:38.8]} 16. Bb5 {[%clk 0:01:49.9]} 16...
Bd5 {[%clk 0:02:35.1]} 17. Ke2 {[%clk 0:01:46.2]} 17... a6 {[%clk 0:02:34.1]}
18. Bd3 {[%clk 0:01:42.6]} 18... Re8 {[%clk 0:02:31.2]} 19. e6 {[%clk
0:01:36.9]} 19... fxe6 {[%clk 0:02:22.4]} 20. Bxh7 {[%clk 0:01:34.9]} 20... Bf6
{[%clk 0:02:16.4]} 21. Bxf6 {[%clk 0:01:31.3]} 21... gxf6 {[%clk 0:02:17.3]} 22.
h4 {[%clk 0:01:26.6]} 22... Rh8 {[%clk 0:02:04.6]} 23. Bd3 {[%clk 0:01:24.1]}
23... f5 {[%clk 0:02:03.9]} 24. Rh2 {[%clk 0:01:16.2]} 24... Rh5 {[%clk
0:01:58.5]} 25. Nd4 {[%clk 0:01:10]} 25... Ne5 {[%clk 0:01:47.1]} 26. Bc2 {[%clk
0:01:02.3]} 26... Ng4 {[%clk 0:01:42.5]} 27. Rh1 {[%clk 0:00:58.8]} 27... Bxg2
{[%clk 0:01:42.3]} 28. Rg1 {[%clk 0:00:58.4]} 28... Bd5 {[%clk 0:01:41.5]} 29.
f3 {[%clk 0:00:52.9]} 29... Ne5 {[%clk 0:01:35]} 30. Rh1 {[%clk 0:00:48.4]}
30... c5 {[%clk 0:01:34.1]} 31. e4 {[%clk 0:00:44.4]} 31... Bc4+ {[%clk
0:01:33.9]} 32. Ke3 {[%clk 0:00:41.8]} 32... cxd4+ {[%clk 0:01:34.8]} 33. Kxd4
{[%clk 0:00:42.1]} 33... fxe4 {[%clk 0:01:33.6]} 34. f4 {[%clk 0:00:34]} 34...
Bd3 {[%clk 0:01:25.4]} 35. fxe5 {[%clk 0:00:26]} 35... Bxc2 {[%clk 0:01:24.9]}
36. Rc1 {[%clk 0:00:26]} 36... Rxh4 {[%clk 0:01:21.2]} 37. Rxc2+ {[%clk
0:00:26.4]} 37... Kd7 {[%clk 0:01:21.4]} 38. Re2 {[%clk 0:00:25.5]} 38... Kc6
{[%clk 0:01:18.9]} 39. Rc2+ {[%clk 0:00:20.5]} 39... Kb6 {[%clk 0:01:14.6]} 40.
Re2 {[%clk 0:00:20.5]} 40... Kb5 {[%clk 0:01:12.2]} 41. b3 {[%clk 0:00:19.2]}
41... Rh3 {[%clk 0:01:12.2]} 42. Re3 {[%clk 0:00:16.6]} 42... Rh4 {[%clk
0:01:07.5]} 43. Rxe4 {[%clk 0:00:15.5]} 43... Rxe4+ {[%clk 0:01:07.7]} 44. Kxe4
{[%clk 0:00:15.6]} 44... Kc5 {[%clk 0:01:08.6]} 45. Kf4 {[%clk 0:00:12.4]} 45...
Kd4 {[%clk 0:01:08.5]} 46. a4 {[%clk 0:00:12.1]} 46... a5 {[%clk 0:01:08.8]} 47.
Kf3 {[%clk 0:00:07.9]} 47... Kxe5 {[%clk 0:01:09.7]} 48. Ke3 {[%clk 0:00:07.4]}
48... Kd5 {[%clk 0:01:09.9]} 49. Kd3 {[%clk 0:00:06.7]} 49... e5 {[%clk
0:01:10.1]} 0-1

[Event "Late-Titled-Tuesday-Blitz-February-20-2024"]
[Site "Chess.com"]
[Date "2024.02.20"]
[Round "2"]
[White "AlexeiShirov"]
[Black "Practical-Play"]
[Result "1-0"]
[WhiteElo "2849"]
[BlackElo "2530"]
[TimeControl "180+1"]
[EndTime "14:16:34 PST"]
[Termination "AlexeiShirov won on time"]

1. e4 {[%clk 0:02:52]} 1... d5 {[%clk 0:02:57.4]} 2. exd5 {[%clk 0:02:51.5]}
2... Nf6 {[%clk 0:02:58]} 3. d4 {[%clk 0:02:50.8]} 3... Bg4 {[%clk 0:02:57.5]}
4. Nf3 {[%clk 0:02:48.6]} 4... Qxd5 {[%clk 0:02:57]} 5. Nc3 {[%clk 0:02:45.3]}
5... Qa5 {[%clk 0:02:53.5]} 6. Be2 {[%clk 0:02:43]} 6... Nc6 {[%clk 0:02:52.4]}
7. Bd2 {[%clk 0:02:35.1]} 7... O-O-O {[%clk 0:02:42.9]} 8. Nb5 {[%clk 0:02:33]}
8... Qb6 {[%clk 0:02:33.4]} 9. a4 {[%clk 0:02:17.3]} 9... Bxf3 {[%clk 0:02:33]}
10. Bxf3 {[%clk 0:02:13.7]} 10... Nxd4 {[%clk 0:02:30.9]} 11. Be3 {[%clk
0:02:01]} 11... Qa5+ {[%clk 0:01:43.4]} 12. b4 {[%clk 0:01:53.2]} 12... Qxb4+
{[%clk 0:01:41.2]} 13. c3 {[%clk 0:01:52.2]} 13... Nxf3+ {[%clk 0:01:17.5]} 14.
Qxf3 {[%clk 0:01:51]} 14... Qg4 {[%clk 0:01:10.8]} 15. Nxa7+ {[%clk 0:01:45.5]}
15... Kb8 {[%clk 0:01:09.8]} 16. Nc6+ {[%clk 0:01:42.5]} 16... bxc6 {[%clk
0:01:03.3]} 17. Qxc6 {[%clk 0:01:42]} 17... Qe4 {[%clk 0:00:56.5]} 18. Rb1+
{[%clk 0:01:39.5]} 18... Kc8 {[%clk 0:00:56.3]} 19. Qa6+ {[%clk 0:01:35.4]}
19... Kd7 {[%clk 0:00:55.3]} 20. O-O {[%clk 0:01:31.4]} 20... e6 {[%clk
0:00:53]} 21. Qb5+ {[%clk 0:01:18.1]} 21... Qc6 {[%clk 0:00:49.8]} 22. Rfd1+
{[%clk 0:01:14.8]} 22... Bd6 {[%clk 0:00:49.6]} 23. Qg5 {[%clk 0:01:09.1]} 23...
Rb8 {[%clk 0:00:35.4]} 24. Qxg7 {[%clk 0:01:01.3]} 24... Rxb1 {[%clk 0:00:17.2]}
25. Qxf7+ {[%clk 0:00:59.6]} 25... Kc8 {[%clk 0:00:15.5]} 26. Rxb1 {[%clk
0:00:56.6]} 26... Rg8 {[%clk 0:00:14.1]} 27. Qxe6+ {[%clk 0:00:53.7]} 27... Qd7
{[%clk 0:00:02.3]} 28. Qxf6 {[%clk 0:00:53]} 28... Qg4 {[%clk 0:00:02.4]} 29. g3
{[%clk 0:00:50]} 29... Rf8 {[%clk 0:00:02.3]} 30. Qd4 {[%clk 0:00:46.1]} 30...
Qf5 {[%clk 0:00:02.3]} 31. Rb5 {[%clk 0:00:43.5]} 31... Qc2 {[%clk 0:00:02.6]}
32. Qg4+ {[%clk 0:00:42.9]} 32... Kd8 {[%clk 0:00:01.5]} 33. Bg5+ {[%clk
0:00:42.2]} 33... Ke8 {[%clk 0:00:01.5]} 34. Qe6+ {[%clk 0:00:41.5]} 1-0

[Event "Late-Titled-Tuesday-Blitz-February-20-2024"]
[Site "Chess.com"]
[Date "2024.02.20"]
[Round "2"]
[White "koziororo"]
[Black "sergoy"]
[Result "0-1"]
[WhiteElo "2598"]
[BlackElo "3000"]
[TimeControl "180+1"]
[EndTime "14:16:35 PST"]
[Termination "sergoy won by resignation"]

1. e4 {[%clk 0:03:00.9]} 1... c5 {[%clk 0:02:59.5]} 2. Nf3 {[%clk 0:03:01]} 2...
e6 {[%clk 0:03:00.2]} 3. c3 {[%clk 0:02:54.9]} 3... Nf6 {[%clk 0:03:00.1]} 4. e5
{[%clk 0:02:54.4]} 4... Nd5 {[%clk 0:03:00.8]} 5. d4 {[%clk 0:02:54.6]} 5...
cxd4 {[%clk 0:03:01.7]} 6. cxd4 {[%clk 0:02:54.3]} 6... d6 {[%clk 0:03:00.8]} 7.
Nc3 {[%clk 0:02:53]} 7... Nxc3 {[%clk 0:03:00.8]} 8. bxc3 {[%clk 0:02:53.8]}
8... Qc7 {[%clk 0:03:01.1]} 9. Bd2 {[%clk 0:02:41]} 9... Nd7 {[%clk 0:03:01.4]}
10. exd6 {[%clk 0:02:41]} 10... Bxd6 {[%clk 0:03:02.3]} 11. Bd3 {[%clk
0:02:41.2]} 11... b6 {[%clk 0:03:02.3]} 12. O-O {[%clk 0:02:39.3]} 12... Bb7
{[%clk 0:03:02.6]} 13. Rc1 {[%clk 0:02:38.6]} 13... Bf4 {[%clk 0:02:58.4]} 14.
Re1 {[%clk 0:02:21.8]} 14... O-O {[%clk 0:02:56.8]} 15. Ng5 {[%clk 0:02:08.8]}
15... h6 {[%clk 0:02:50.9]} 16. Ne4 {[%clk 0:02:03.7]} 16... Bxh2+ {[%clk
0:02:48.1]} 17. Kh1 {[%clk 0:02:03.4]} 17... Bf4 {[%clk 0:02:48.2]} 18. Qg4
{[%clk 0:01:44.4]} 18... Bxd2 {[%clk 0:02:40.3]} 19. Nxd2 {[%clk 0:01:45.3]}
19... Rad8 {[%clk 0:02:28.8]} 20. Re3 {[%clk 0:01:16.3]} 20... Nf6 {[%clk
0:02:27.3]} 21. Qh4 {[%clk 0:01:15.2]} 21... Rd5 {[%clk 0:02:24.4]} 22. Qg3
{[%clk 0:01:15.4]} 22... Qxg3 {[%clk 0:02:18.8]} 23. Rxg3 {[%clk 0:01:16.3]}
23... Rc8 {[%clk 0:02:17.8]} 24. Re3 {[%clk 0:01:02.6]} 24... Rxd4 {[%clk
0:02:13.1]} 25. Nb3 {[%clk 0:01:02.3]} 25... Rdd8 {[%clk 0:02:12.2]} 26. Rh3
{[%clk 0:00:52.9]} 26... Nd5 {[%clk 0:02:07.8]} 27. Bf1 {[%clk 0:00:49.8]} 27...
Nf4 {[%clk 0:01:59.3]} 28. Re3 {[%clk 0:00:50]} 28... Rd6 {[%clk 0:01:55.2]} 29.
c4 {[%clk 0:00:48.6]} 29... Rcd8 {[%clk 0:01:50.3]} 30. c5 {[%clk 0:00:41.6]}
30... Rd1 {[%clk 0:01:46.6]} 31. Re1 {[%clk 0:00:42.3]} 31... Rxe1 {[%clk
0:01:44.2]} 32. Rxe1 {[%clk 0:00:42.8]} 32... Bd5 {[%clk 0:01:44.6]} 33. Kh2
{[%clk 0:00:24.2]} 33... Bxb3 {[%clk 0:01:42.1]} 34. axb3 {[%clk 0:00:25.1]}
34... bxc5 {[%clk 0:01:42.3]} 35. Ra1 {[%clk 0:00:25.8]} 35... Rd7 {[%clk
0:01:41.5]} 36. Bc4 {[%clk 0:00:22.6]} 36... g5 {[%clk 0:01:39.5]} 37. Kg3
{[%clk 0:00:21.5]} 37... Kg7 {[%clk 0:01:38.6]} 38. Ra5 {[%clk 0:00:21.4]} 38...
Rc7 {[%clk 0:01:38.6]} 39. Kf3 {[%clk 0:00:22.2]} 39... Ng6 {[%clk 0:01:38.6]}
40. Ke4 {[%clk 0:00:20.6]} 40... h5 {[%clk 0:01:39]} 41. g3 {[%clk 0:00:20.7]}
41... h4 {[%clk 0:01:38.6]} 42. Ra1 {[%clk 0:00:20.2]} 42... Rd7 {[%clk
0:01:37.1]} 43. Ra5 {[%clk 0:00:17.7]} 43... Rd4+ {[%clk 0:01:34.8]} 44. Kf3
{[%clk 0:00:16.7]} 44... Ne5+ {[%clk 0:01:34.8]} 45. Kg2 {[%clk 0:00:14.7]}
45... Nxc4 {[%clk 0:01:35.2]} 46. bxc4 {[%clk 0:00:15.6]} 46... Rxc4 {[%clk
0:01:35.6]} 47. Rxa7 {[%clk 0:00:16.5]} 47... hxg3 {[%clk 0:01:35.9]} 48. Kxg3
{[%clk 0:00:17.4]} 48... Kg6 {[%clk 0:01:36]} 49. Rc7 {[%clk 0:00:17.2]} 49...
Rc3+ {[%clk 0:01:36.3]} 50. Kg2 {[%clk 0:00:16.5]} 50... f5 {[%clk 0:01:36.3]}
51. Rc6 {[%clk 0:00:15.9]} 51... Kf6 {[%clk 0:01:36.8]} 52. Rc8 {[%clk
0:00:16.8]} 52... g4 {[%clk 0:01:37.1]} 53. Rf8+ {[%clk 0:00:16.7]} 53... Ke5
{[%clk 0:01:37.6]} 54. Rc8 {[%clk 0:00:17.6]} 54... Kf4 {[%clk 0:01:37.2]} 55.
Rc6 {[%clk 0:00:17.1]} 55... e5 {[%clk 0:01:37.7]} 56. Rc8 {[%clk 0:00:18]}
56... e4 {[%clk 0:01:38.2]} 57. Rf8 {[%clk 0:00:16.3]} 57... Rc2 {[%clk
0:01:37.7]} 58. Kf1 {[%clk 0:00:16.2]} 58... c4 {[%clk 0:01:37.9]} 59. Ke1
{[%clk 0:00:15.8]} 59... c3 {[%clk 0:01:38.2]} 60. Rf7 {[%clk 0:00:16.2]} 60...
Ra2 {[%clk 0:01:31.7]} 61. Rf8 {[%clk 0:00:15.7]} 61... Ra1+ {[%clk 0:01:31.4]}
62. Ke2 {[%clk 0:00:15.8]} 62... c2 {[%clk 0:01:31.1]} 0-1

[Event "Late-Titled-Tuesday-Blitz-February-20-2024"]
[Site "Chess.com"]
[Date "2024.02.20"]
[Round "2"]
[White "ExchangeAB"]
[Black "rionelG"]
[Result "0-1"]
[WhiteElo "2450"]
[BlackElo "2209"]
[TimeControl "180+1"]
[EndTime "14:16:35 PST"]
[Termination "rionelG won by checkmate"]

1. d4 {[%clk 0:03:00.9]} 1... d5 {[%clk 0:02:57.1]} 2. Nf3 {[%clk 0:03:01]} 2...
e6 {[%clk 0:02:57.5]} 3. c3 {[%clk 0:03:01]} 3... b6 {[%clk 0:02:52.5]} 4. Bf4
{[%clk 0:02:59.2]} 4... Bb7 {[%clk 0:02:52.8]} 5. e3 {[%clk 0:02:59.1]} 5... Nf6
{[%clk 0:02:51.8]} 6. Nbd2 {[%clk 0:02:58.2]} 6... Bd6 {[%clk 0:02:50.8]} 7.
Bxd6 {[%clk 0:02:56.9]} 7... Qxd6 {[%clk 0:02:49.9]} 8. Ne5 {[%clk 0:02:57.5]}
8... O-O {[%clk 0:02:49.3]} 9. f4 {[%clk 0:02:57.3]} 9... c5 {[%clk 0:02:29.4]}
10. Bd3 {[%clk 0:02:56.2]} 10... Nbd7 {[%clk 0:02:26.1]} 11. Qe2 {[%clk
0:02:44.3]} 11... Ne4 {[%clk 0:02:25.3]} 12. O-O {[%clk 0:02:29.8]} 12... Ndf6
{[%clk 0:02:17.3]} 13. Bxe4 {[%clk 0:02:24.8]} 13... dxe4 {[%clk 0:02:12.8]} 14.
Ndc4 {[%clk 0:02:15]} 14... Qc7 {[%clk 0:02:12.1]} 15. a4 {[%clk 0:02:10.5]}
15... Rac8 {[%clk 0:01:50.8]} 16. Na3 {[%clk 0:02:10]} 16... a6 {[%clk 0:01:27]}
17. Rac1 {[%clk 0:01:59.3]} 17... Nd5 {[%clk 0:01:24.3]} 18. f5 {[%clk
0:01:29.3]} 18... f6 {[%clk 0:01:11.4]} 19. Ng4 {[%clk 0:01:21.4]} 19... exf5
{[%clk 0:01:11.5]} 20. Rxf5 {[%clk 0:01:21.9]} 20... Qd7 {[%clk 0:01:11.9]} 21.
Qf2 {[%clk 0:01:04.4]} 21... Qxa4 {[%clk 0:01:08.5]} 22. Rh5 {[%clk 0:00:42.6]}
22... Qd7 {[%clk 0:00:47.5]} 23. Qh4 {[%clk 0:00:26.9]} 23... h6 {[%clk
0:00:33.3]} 24. Nc4 {[%clk 0:00:24.9]} 24... cxd4 {[%clk 0:00:25.2]} 25. exd4
{[%clk 0:00:24.2]} 25... Rxc4 {[%clk 0:00:23.5]} 26. Nxh6+ {[%clk 0:00:23.7]}
26... gxh6 {[%clk 0:00:23.2]} 27. Rxh6 {[%clk 0:00:24.6]} 27... Qg7 {[%clk
0:00:20.2]} 28. Qh5 {[%clk 0:00:24.5]} 28... Ne7 {[%clk 0:00:20]} 29. Rf1 {[%clk
0:00:23.3]} 29... e3 {[%clk 0:00:19.7]} 30. Re1 {[%clk 0:00:19.2]} 30... Qxg2#
{[%clk 0:00:19.4]} 0-1

[Event "Late-Titled-Tuesday-Blitz-February-20-2024"]
[Site "Chess.com"]
[Date "2024.02.20"]
[Round "2"]
[White "StrackedAktonamee"]
[Black "thesupera12"]
[Result "1-0"]
[WhiteElo "2330"]
[BlackElo "2488"]
[TimeControl "180+1"]
[EndTime "14:16:39 PST"]
[Termination "StrackedAktonamee won by checkmate"]

1. Nf3 {[%clk 0:03:00.9]} 1... Nf6 {[%clk 0:02:50.6]} 2. g3 {[%clk 0:02:55.4]}
2... Rg8 {[%clk 0:02:48.3]} 3. d4 {[%clk 0:02:51.8]} 3... h6 {[%clk 0:02:47.7]}
4. c4 {[%clk 0:02:50.3]} 4... g5 {[%clk 0:02:47.5]} 5. Nc3 {[%clk 0:02:48.8]}
5... e6 {[%clk 0:02:47.2]} 6. e4 {[%clk 0:02:48.1]} 6... Bb4 {[%clk 0:02:46.9]}
7. Qc2 {[%clk 0:02:44.8]} 7... b6 {[%clk 0:02:46.6]} 8. Bg2 {[%clk 0:02:43.2]}
8... Bb7 {[%clk 0:02:46.7]} 9. Nd2 {[%clk 0:02:41.7]} 9... Nc6 {[%clk
0:02:34.9]} 10. Ne2 {[%clk 0:02:31.9]} 10... Qe7 {[%clk 0:02:28.4]} 11. a3
{[%clk 0:02:30.2]} 11... Bxd2+ {[%clk 0:02:27.5]} 12. Bxd2 {[%clk 0:02:31.1]}
12... O-O-O {[%clk 0:02:27.2]} 13. e5 {[%clk 0:02:15]} 13... Ne8 {[%clk
0:02:14.3]} 14. Qa4 {[%clk 0:01:43.5]} 14... Kb8 {[%clk 0:02:07.4]} 15. Bb4
{[%clk 0:01:07.3]} 15... Nxb4 {[%clk 0:02:00.6]} 16. axb4 {[%clk 0:01:08.2]}
16... Bxg2 {[%clk 0:02:00.6]} 17. d5 {[%clk 0:01:08.3]} 17... a5 {[%clk
0:01:09.8]} 18. bxa5 {[%clk 0:01:09.2]} 18... b5 {[%clk 0:00:43.4]} 19. Qxb5+
{[%clk 0:01:07.4]} 19... Ka7 {[%clk 0:00:38.5]} 20. d6 {[%clk 0:00:56.8]} 20...
cxd6 {[%clk 0:00:27.4]} 21. Qb6+ {[%clk 0:00:56]} 21... Ka8 {[%clk 0:00:26.6]}
22. Ra3 {[%clk 0:00:25.2]} 22... Bxh1 {[%clk 0:00:08.1]} 23. Qa6+ {[%clk
0:00:12.2]} 23... Kb8 {[%clk 0:00:08.1]} 24. Rb3+ {[%clk 0:00:13.1]} 24... Kc7
{[%clk 0:00:06.8]} 25. Qb6+ {[%clk 0:00:10.2]} 25... Kc8 {[%clk 0:00:07.2]} 26.
Qb8# {[%clk 0:00:11.1]} 1-0

[Event "Late-Titled-Tuesday-Blitz-February-20-2024"]
[Site "Chess.com"]
[Date "2024.02.20"]
[Round "2"]
[White "a_kandil"]
[Black "Korchmar_Vasiliy"]
[Result "0-1"]
[WhiteElo "2437"]
[BlackElo "2768"]
[TimeControl "180+1"]
[EndTime "14:16:45 PST"]
[Termination "Korchmar_Vasiliy won by resignation"]

1. e4 {[%clk 0:03:00.3]} 1... e6 {[%clk 0:02:57.6]} 2. d3 {[%clk 0:02:59.5]}
2... g6 {[%clk 0:02:53.7]} 3. g3 {[%clk 0:02:57.6]} 3... Bg7 {[%clk 0:02:54.1]}
4. Bg2 {[%clk 0:02:58]} 4... Ne7 {[%clk 0:02:54.7]} 5. Nf3 {[%clk 0:02:58.4]}
5... O-O {[%clk 0:02:55.1]} 6. O-O {[%clk 0:02:58.9]} 6... c5 {[%clk 0:02:54.9]}
7. Re1 {[%clk 0:02:58.9]} 7... Nbc6 {[%clk 0:02:55.2]} 8. c3 {[%clk 0:02:58.8]}
8... d5 {[%clk 0:02:54.2]} 9. Qe2 {[%clk 0:02:59]} 9... b6 {[%clk 0:02:53.8]}
10. h4 {[%clk 0:02:46.3]} 10... Ba6 {[%clk 0:02:52.5]} 11. c4 {[%clk 0:02:38.6]}
11... b5 {[%clk 0:02:40.6]} 12. exd5 {[%clk 0:02:26.6]} 12... exd5 {[%clk
0:02:39.3]} 13. Be3 {[%clk 0:02:27.2]} 13... bxc4 {[%clk 0:02:29.3]} 14. Bxc5
{[%clk 0:02:16.5]} 14... cxd3 {[%clk 0:02:28]} 15. Qd2 {[%clk 0:02:16.8]} 15...
Re8 {[%clk 0:02:00.4]} 16. Nc3 {[%clk 0:02:16.3]} 16... Rc8 {[%clk 0:01:37.4]}
17. h5 {[%clk 0:02:11.7]} 17... Nf5 {[%clk 0:01:16.8]} 18. Ng5 {[%clk
0:01:51.2]} 18... Rxe1+ {[%clk 0:01:06.6]} 19. Rxe1 {[%clk 0:01:50.2]} 19...
Ncd4 {[%clk 0:01:00.1]} 20. Nxf7 {[%clk 0:01:43.2]} 20... Kxf7 {[%clk
0:00:50.3]} 21. Bxd5+ {[%clk 0:01:42.7]} 21... Qxd5 {[%clk 0:00:50.9]} 22. Nxd5
{[%clk 0:01:43.6]} 22... Rxc5 {[%clk 0:00:51.3]} 23. hxg6+ {[%clk 0:01:26.8]}
23... hxg6 {[%clk 0:00:50.8]} 24. Kg2 {[%clk 0:00:59.6]} 24... Rxd5 {[%clk
0:00:46.8]} 25. g4 {[%clk 0:00:59.9]} 25... Nh4+ {[%clk 0:00:43.4]} 26. Kg3
{[%clk 0:01:00.1]} 26... Nhf3 {[%clk 0:00:24.2]} 27. Qf4+ {[%clk 0:00:58.9]}
27... Kg8 {[%clk 0:00:24.8]} 28. Qb8+ {[%clk 0:00:53.6]} 28... Kh7 {[%clk
0:00:14]} 29. Rh1+ {[%clk 0:00:53.4]} 29... Rh5 {[%clk 0:00:14.7]} 30. gxh5
{[%clk 0:00:53.1]} 30... Be5+ {[%clk 0:00:15]} 31. Qxe5 {[%clk 0:00:52.7]} 31...
Nxe5 {[%clk 0:00:15.9]} 32. Kf4 {[%clk 0:00:47.9]} 32... Nc4 {[%clk 0:00:10]}
33. Ke4 {[%clk 0:00:39.2]} 33... Bb7+ {[%clk 0:00:09.8]} 34. Kxd4 {[%clk
0:00:39.3]} 34... Bxh1 {[%clk 0:00:10.6]} 35. Kxd3 {[%clk 0:00:39]} 35... Nxb2+
{[%clk 0:00:09.6]} 36. Kc3 {[%clk 0:00:38.9]} 36... gxh5 {[%clk 0:00:10.2]} 37.
Kxb2 {[%clk 0:00:38.9]} 37... h4 {[%clk 0:00:10.9]} 0-1

[Event "Late-Titled-Tuesday-Blitz-February-20-2024"]
[Site "Chess.com"]
[Date "2024.02.20"]
[Round "2"]
[White "prime-morty"]
[Black "bancsoo"]
[Result "1-0"]
[WhiteElo "2566"]
[BlackElo "2890"]
[TimeControl "180+1"]
[EndTime "14:16:47 PST"]
[Termination "prime-morty won by resignation"]

1. c4 {[%clk 0:03:00.9]} 1... c6 {[%clk 0:02:58.2]} 2. Nf3 {[%clk 0:02:57.8]}
2... d5 {[%clk 0:02:58.1]} 3. e3 {[%clk 0:02:57.6]} 3... Nf6 {[%clk 0:02:58.3]}
4. Nc3 {[%clk 0:02:57.8]} 4... g6 {[%clk 0:02:57]} 5. d4 {[%clk 0:02:52.4]} 5...
Bg7 {[%clk 0:02:57.2]} 6. Be2 {[%clk 0:02:52.5]} 6... O-O {[%clk 0:02:57.9]} 7.
O-O {[%clk 0:02:52.5]} 7... Be6 {[%clk 0:02:58.7]} 8. Ne5 {[%clk 0:02:50.4]}
8... Nfd7 {[%clk 0:02:49.1]} 9. f4 {[%clk 0:02:50.1]} 9... Nxe5 {[%clk
0:02:48.5]} 10. fxe5 {[%clk 0:02:49.8]} 10... dxc4 {[%clk 0:02:48.1]} 11. a4
{[%clk 0:02:48.6]} 11... c5 {[%clk 0:02:45.3]} 12. d5 {[%clk 0:02:38.6]} 12...
Bc8 {[%clk 0:02:42.8]} 13. e6 {[%clk 0:02:38.2]} 13... fxe6 {[%clk 0:02:39.3]}
14. Rxf8+ {[%clk 0:02:34.8]} 14... Qxf8 {[%clk 0:02:36]} 15. Bxc4 {[%clk
0:02:35]} 15... Na6 {[%clk 0:01:50.4]} 16. dxe6 {[%clk 0:02:23.8]} 16... Bxc3
{[%clk 0:01:47.4]} 17. bxc3 {[%clk 0:02:22.6]} 17... Nc7 {[%clk 0:01:47.5]} 18.
Ba3 {[%clk 0:02:07.4]} 18... Bxe6 {[%clk 0:01:39.6]} 19. Bxe6+ {[%clk
0:02:06.9]} 19... Nxe6 {[%clk 0:01:39.7]} 20. Qd5 {[%clk 0:02:07.6]} 20... Qf5
{[%clk 0:01:39.6]} 21. Qxb7 {[%clk 0:01:54.1]} 21... Rf8 {[%clk 0:01:39.5]} 22.
h3 {[%clk 0:01:50.4]} 22... Rf7 {[%clk 0:01:11.7]} 23. Qb8+ {[%clk 0:01:27.5]}
23... Kg7 {[%clk 0:01:06.4]} 24. Qg3 {[%clk 0:01:27.6]} 24... h5 {[%clk
0:00:46.2]} 25. c4 {[%clk 0:01:26.9]} 25... Ng5 {[%clk 0:00:31.3]} 26. Bb2+
{[%clk 0:01:26.2]} 26... Kh7 {[%clk 0:00:31.9]} 27. Rd1 {[%clk 0:00:56.7]} 27...
Ne4 {[%clk 0:00:30.6]} 28. Qe1 {[%clk 0:00:56.9]} 28... Qg5 {[%clk 0:00:18.9]}
29. Rd8 {[%clk 0:00:52.8]} 29... e5 {[%clk 0:00:15.4]} 30. Re8 {[%clk
0:00:53.1]} 30... Rf2 {[%clk 0:00:15]} 31. Qxf2 {[%clk 0:00:47.6]} 31... Nxf2
{[%clk 0:00:15.3]} 32. Bxe5 {[%clk 0:00:42.5]} 32... Nxh3+ {[%clk 0:00:08.1]}
33. Kh2 {[%clk 0:00:41.3]} 33... Qxe5+ {[%clk 0:00:02]} 34. Rxe5 {[%clk
0:00:40.9]} 34... Nf2 {[%clk 0:00:02.9]} 35. Rxc5 {[%clk 0:00:39.9]} 35... Ng4+
{[%clk 0:00:03.1]} 36. Kg1 {[%clk 0:00:40.2]} 36... Nxe3 {[%clk 0:00:03.3]} 37.
Rc7+ {[%clk 0:00:40.7]} 37... Kh6 {[%clk 0:00:04]} 38. c5 {[%clk 0:00:40.2]}
38... a5 {[%clk 0:00:02.3]} 39. c6 {[%clk 0:00:40.6]} 39... Nd5 {[%clk
0:00:02.6]} 40. Rd7 {[%clk 0:00:41]} 1-0